fUSD/lending_fUSD_20240301
["ID","MTS","AMOUNT","RATE_DAILY","PERIOD"]
[316028702,1709328656513,-500.0,0.00022136,2]
[316028703,1709328656524,-598.47,0.00022136,2]
[316028704,1709328656534,-500.0,0.00022136,2]
[316028705,1709328656546,-500.0,0.00022136,2]
[316028706,1709328656557,-500.0,0.00022136,2]
[316028707,1709328656569,-500.0,0.00022136,2]
[316028708,1709328656580,-500.0,0.00022136,2]
[316028709,1709328656592,-500.0,0.00022136,2]
[316028710,1709328656603,-670.82,0.00022136,2]
[316028711,1709328656615,-500.0,0.00022136,2]
[316028712,1709328656627,-588.71,0.00022136,2]
[316028713,1709328656639,-1272.27,0.00022136,2]
[316028714,1709328656652,-500.0,0.00022136,2]
[316028715,1709328656663,-500.0,0.00022136,2]
[316028716,1709328656676,-500.0,0.00022136,2]
[316028717,1709328656688,-500.0,0.00022136,2]
[316028718,1709328656700,-678.39,0.00022136,2]
[316028719,1709328656712,-500.0,0.00022136,2]
[316028720,1709328656724,-500.0,0.00022136,2]
[316028721,1709328656737,-500.0,0.00022136,2]
[316028722,1709328656750,-849.53,0.00022136,2]
[316028723,1709328656763,-500.0,0.00022136,2]
[316028724,1709328656775,-878.99,0.00022136,2]
[316028725,1709328656784,-2036.27,0.00022136,2]
[316028726,1709328656794,-500.0,0.00022136,2]
[316028727,1709328656805,-500.0,0.00022136,2]
[316028728,1709328656815,-500.0,0.00022136,2]
[316028729,1709328656825,-500.0,0.00022136,2]
[316028730,1709328657202,-500.0,0.00022136,2]
[316028731,1709328657257,-500.0,0.00022136,2]
[316028732,1709328657278,-1094.91,0.00022136,2]
[316028733,1709328657300,-500.0,0.00022136,2]
[316028734,1709328657309,-500.0,0.00022136,2]
[316028735,1709328657318,-500.0,0.00022136,2]
[316028736,1709328657327,-500.0,0.00022136,2]
[316028737,1709328657336,-533.71,0.00022136,2]
[316028738,1709328657346,-533.33,0.00022136,2]
[316028739,1709328657355,-1421.07,0.00022136,2]
[316028740,1709328657364,-500.0,0.00022136,2]
[316028741,1709328657373,-500.0,0.00022136,2]
[316028742,1709328657386,-912.34,0.00022136,2]
[316028743,1709328657395,-500.0,0.00022136,2]
[316028744,1709328657404,-841.55,0.00022136,2]
[316028745,1709328657413,-500.0,0.00022136,2]
[316028746,1709328657421,-500.0,0.00022136,2]
[316028747,1709328657430,-1139.29,0.00022136,2]
[316028748,1709328657439,-500.0,0.00022136,2]
[316028749,1709328657449,-1580.22,0.00022136,2]
[316028750,1709328657458,-500.0,0.00022136,2]
[316028751,1709328657467,-500.0,0.00022136,2]
[316028752,1709328657477,-500.0,0.00022136,2]
[316028753,1709328657487,-500.0,0.00022136,2]
[316028754,1709328657497,-500.0,0.00022136,2]
[316028755,1709328657506,-500.0,0.00022136,2]
[316028756,1709328657515,-1262.24,0.00022136,2]
[316028757,1709328657524,-2674.55,0.00022136,2]
[316028758,1709328657533,-500.0,0.00022136,2]
[316028759,1709328657543,-1341.14,0.00022136,2]
[316028760,1709328657552,-500.0,0.00022136,2]
[316028761,1709328657561,-2092.42,0.00022136,2]
[316028762,1709328657570,-500.0,0.00022136,2]
[316028763,1709328657579,-500.0,0.00022136,2]
[316028764,1709328657589,-3554.37,0.00022136,2]
[316028765,1709328657598,-22031.57,0.00022136,2]
[316028766,1709328657608,-701.99,0.00022136,2]
[316028767,1709328657618,-1064.52,0.00022136,2]
[316028768,1709328657629,-639.85,0.00022136,2]
[316028769,1709328657638,-500.0,0.00022136,2]
[316028770,1709328657647,-627.03,0.00022136,2]
[316028771,1709328657656,-5388.16,0.00022136,2]
[316028772,1709328657666,-12964.37,0.00022136,2]
[316028773,1709328657676,-1232.9,0.00022136,2]
[316028774,1709328657685,-500.0,0.00022136,2]
[316028775,1709328657694,-19234.87,0.00022136,2]
[316028776,1709328657704,-500.0,0.00022136,2]
[316028777,1709328657713,-625.28,0.00022136,2]
[316028778,1709328657723,-1030.09,0.00022136,2]
[316028779,1709328657732,-879.42,0.00022136,2]
[316028780,1709328657741,-500.0,0.00022136,2]
[316028781,1709328657751,-500.0,0.00022136,2]
[316028782,1709328657760,-591.46,0.00022136,2]
[316028783,1709328657769,-500.0,0.00022136,2]
[316028784,1709328657778,-500.0,0.00022136,2]
[316028785,1709328657788,-525.33,0.00022136,2]
[316028786,1709328657797,-2623.39,0.00022136,2]
[316028787,1709328657807,-718.91,0.00022136,2]
[316028788,1709328657816,-500.0,0.00022136,2]
[316028789,1709328657826,-768.4,0.00022136,2]
[316028790,1709328657835,-500.0,0.00022136,2]
[316028791,1709328657844,-3801.92,0.00022136,2]
[316028792,1709328657853,-500.0,0.00022136,2]
[316028793,1709328657863,-562.14,0.00022136,2]
[316028794,1709328657872,-500.0,0.00022136,2]
[316028795,1709328657882,-3047.53,0.00022136,2]
[316028796,1709328657891,-500.0,0.00022136,2]
[316028797,1709328657900,-1310.43,0.00022136,2]
[316028798,1709328657910,-500.0,0.00022136,2]
[316028799,1709328657919,-823.12,0.00022136,2]
[316028800,1709328657928,-500.0,0.00022136,2]
[316028801,1709328657937,-500.0,0.00022136,2]
[316028802,1709328657947,-500.0,0.00022136,2]
[316028803,1709328657958,-500.0,0.00022136,2]
[316028804,1709328657967,-500.0,0.00022136,2]
[316028805,1709328657977,-716.56,0.00022136,2]
[316028806,1709328657986,-500.0,0.00022136,2]
[316028807,1709328657995,-500.0,0.00022136,2]
[316028808,1709328658005,-2376.01,0.00022136,2]
[316028809,1709328658014,-3381.92,0.00022136,2]
[316028810,1709328658024,-500.0,0.00022136,2]
[316028811,1709328658034,-500.0,0.00022136,2]
[316028812,1709328658047,-500.0,0.00022136,2]
[316028813,1709328658056,-866.15,0.00022136,2]
[316028814,1709328658065,-841.14,0.00022136,2]
[316028815,1709328658074,-500.0,0.00022136,2]
[316028816,1709328658086,-500.0,0.00022136,2]
[316028817,1709328658096,-500.0,0.00022136,2]
[316028818,1709328658106,-500.0,0.00022136,2]
[316028819,1709328658116,-577.75,0.00022136,2]
[316028820,1709328658125,-1258.66,0.00022136,2]
[316028821,1709328658135,-500.0,0.00022136,2]
[316028822,1709328658144,-943.35,0.00022136,2]
[316028823,1709328658153,-652.2,0.00022136,2]
[316028824,1709328658162,-1224.0,0.00022136,2]
[316028825,1709328658172,-864.99,0.00022136,2]
[316028826,1709328658181,-500.0,0.00022136,2]
[316028827,1709328658190,-820.32,0.00022136,2]
[316028828,1709328658199,-500.0,0.00022136,2]
[316028829,1709328658210,-612.09,0.00022136,2]
[316028830,1709328658219,-500.0,0.00022136,2]
[316028831,1709328658228,-2359.92,0.00022136,2]
[316028832,1709328658237,-500.0,0.00022136,2]
[316028833,1709328658246,-500.0,0.00022136,2]
[316028834,1709328658255,-500.0,0.00022136,2]
[316028835,1709328658265,-716.08,0.00022136,2]
[316028836,1709328658274,-1817.57,0.00022136,2]
[316028837,1709328658283,-1515.63,0.00022136,2]
[316028838,1709328658292,-819.32,0.00022136,2]
[316028839,1709328658301,-777.15,0.00022136,2]
[316028840,1709328658310,-500.0,0.00022136,2]
[316028841,1709328658320,-500.0,0.00022136,2]
[316028842,1709328658329,-591.97,0.00022136,2]
[316028843,1709328658338,-500.0,0.00022136,2]
[316028844,1709328658347,-1444.25,0.00022136,2]
[316028845,1709328658357,-890.54,0.00022136,2]
[316028846,1709328658366,-500.0,0.00022136,2]
[316028847,1709328658377,-500.0,0.00022136,2]
[316028848,1709328658386,-500.0,0.00022136,2]
[316028849,1709328658396,-653.12,0.00022136,2]
[316028850,1709328658405,-500.0,0.00022136,2]
[316028851,1709328658415,-500.0,0.00022136,2]
[316028852,1709328658423,-544.86,0.00022136,2]
[316028853,1709328658433,-500.0,0.00022136,2]
[316028854,1709328658442,-668.01,0.00022136,2]
[316028855,1709328658452,-564.0,0.00022136,2]
[316028856,1709328658461,-517.53,0.00022136,2]
[316028857,1709328658470,-11798.33,0.00022136,2]
[316028858,1709328658479,-500.0,0.00022136,2]
[316028859,1709328658488,-500.0,0.00022136,2]
[316028860,1709328658498,-500.0,0.00022136,2]
[316028861,1709328658507,-500.0,0.00022136,2]
[316028862,1709328658517,-615.8,0.00022136,2]
[316028863,1709328658526,-500.0,0.00022136,2]
[316028864,1709328658535,-1178.7,0.00022136,2]
[316028865,1709328658545,-500.0,0.00022136,2]
[316028866,1709328658554,-708.24,0.00022136,2]
[316028867,1709328658563,-500.0,0.00022136,2]
[316028868,1709328658572,-500.0,0.00022136,2]
[316028869,1709328658581,-3036.11,0.00022136,2]
[316028870,1709328658590,-500.0,0.00022136,2]
[316028871,1709328658599,-500.0,0.00022136,2]
[316028872,1709328658609,-819.23,0.00022136,2]
[316028873,1709328658618,-500.0,0.00022136,2]
[316028874,1709328658629,-568.79,0.00022136,2]
[316028875,1709328658638,-500.0,0.00022136,2]
[316028876,1709328658647,-507.75,0.00022136,2]
[316028877,1709328658656,-1291.29,0.00022136,2]
[316028878,1709328658666,-661.02,0.00022136,2]
[316028879,1709328658675,-500.0,0.00022136,2]
[316028880,1709328658684,-592.43,0.00022136,2]
[316028881,1709328658693,-500.0,0.00022136,2]
[316028882,1709328658702,-1204.1,0.00022136,2]
[316028883,1709328658711,-500.0,0.00022136,2]
[316028884,1709328658721,-500.0,0.00022136,2]
[316028885,1709328658731,-624.78318344,0.00022136,2]
[316028886,1709328658740,-1481.86,0.00022136,2]
[316028887,1709328658749,-500.0,0.00022136,2]
[316028888,1709328658759,-500.0,0.00022136,2]
[316028889,1709328658768,-783.92,0.00022136,2]
[316028890,1709328658778,-500.0,0.00022136,2]
[316028891,1709328658788,-2213.26,0.00022136,2]
[316028892,1709328658798,-500.0,0.00022136,2]
[316028893,1709328658807,-782.94,0.00022136,2]
[316028894,1709328658817,-500.0,0.00022136,2]
[316028895,1709328658826,-500.0,0.00022136,2]
[316028896,1709328658836,-1312.48,0.00022136,2]
[316028897,1709328658847,-836.34,0.00022136,2]
[316028898,1709328658857,-1408.63,0.00022136,2]
[316028899,1709328658866,-500.0,0.00022136,2]
[316028900,1709328658875,-552.95,0.00022136,2]
[316028901,1709328658887,-877.39,0.00022136,2]
[316028902,1709328658897,-726.46,0.00022136,2]
[316028903,1709328658907,-500.0,0.00022136,2]
[316028904,1709328658916,-500.0,0.00022136,2]
[316028905,1709328658926,-1437.05,0.00022136,2]
[316028906,1709328658936,-2294.72,0.00022136,2]
[316028907,1709328658945,-906.87,0.00022136,2]
[316028908,1709328658955,-500.0,0.00022136,2]
[316028909,1709328658965,-685.72,0.00022136,2]
[316028910,1709328658973,-500.0,0.00022136,2]
[316028911,1709328658983,-500.0,0.00022136,2]
[316028912,1709328658993,-500.0,0.00022136,2]
[316028913,1709328659002,-786.95,0.00022136,2]
[316028914,1709328659012,-500.0,0.00022136,2]
[316028915,1709328659021,-500.0,0.00022136,2]
[316028916,1709328659034,-572.96,0.00022136,2]
[316028917,1709328659043,-500.0,0.00022136,2]
[316028918,1709328659052,-571.0,0.00022136,2]
[316028919,1709328659061,-1703.63,0.00022136,2]
[316028920,1709328659072,-2645.44,0.00022136,2]
[316028921,1709328659081,-923.63,0.00022136,2]
[316028922,1709328659090,-500.0,0.00022136,2]
[316028923,1709328659100,-874.1,0.00022136,2]
[316028924,1709328659111,-500.0,0.00022136,2]
[316028925,1709328659120,-2609.99,0.00022136,2]
[316028926,1709328659130,-500.0,0.00022136,2]
[316028927,1709328659139,-500.0,0.00022136,2]
[316028928,1709328659148,-4819.61,0.00022136,2]
[316028929,1709328659158,-1024.04,0.00022136,2]
[316028930,1709328659167,-500.0,0.00022136,2]
[316028931,1709328659177,-567.41,0.00022136,2]
[316028932,1709328659194,-1364.46,0.00022136,2]
[316028933,1709328659208,-1947.64,0.00022136,2]
[316028934,1709328659218,-500.0,0.00022136,2]
[316028935,1709328659228,-961.79,0.00022136,2]
[316028936,1709328659238,-1664.45,0.00022136,2]
[316028937,1709328659248,-500.0,0.00022136,2]
[316028938,1709328659258,-500.0,0.00022136,2]
[316028939,1709328659269,-2683.61,0.00022136,2]
[316028940,1709328659279,-500.0,0.00022136,2]
[316028941,1709328659289,-591.44,0.00022136,2]
[316028942,1709328659299,-5623.01,0.00022136,2]
[316028943,1709328659309,-500.0,0.00022136,2]
[316028944,1709328659319,-500.0,0.00022136,2]
[316028945,1709328659330,-3786.07,0.00022136,2]
[316028946,1709328659340,-500.0,0.00022136,2]
[316028947,1709328659351,-1383.65,0.00022136,2]
[316028948,1709328659361,-500.0,0.00022136,2]
[316028949,1709328659371,-9217.98,0.00022136,2]
[316028950,1709328659382,-208.74690649,0.00022136,2]
[316028951,1709328659392,-561.4,0.00022136,2]
[316028952,1709328659402,-11675.57,0.00022136,2]
[316028953,1709328659411,-500.0,0.00022136,2]
[316028954,1709328659421,-500.0,0.00022136,2]
[316028955,1709328659431,-1723.27,0.00022136,2]
[316028956,1709328659441,-8684.27,0.00022136,2]
[316028957,1709328659451,-500.0,0.00022136,2]
[316028958,1709328659461,-500.0,0.00022136,2]
[316028959,1709328659472,-702.09,0.00022136,2]
[316028960,1709328659482,-500.0,0.00022136,2]
[316028961,1709328659492,-3567.05,0.00022136,2]
[316028962,1709328659502,-3405.56,0.00022136,2]
[316028963,1709328659512,-2872.71,0.00022136,2]
[316028964,1709328659523,-4829.55,0.00022136,2]
[316028965,1709328659533,-548.65441137,0.00022136,2]
[316028966,1709328659542,-500.0,0.00022136,2]
[316028967,1709328659552,-7070.51,0.00022136,2]
[316028968,1709328659562,-500.0,0.00022136,2]
[316028969,1709328659572,-26810.74,0.00022136,2]
[316028970,1709328659582,-2983.15,0.00022136,2]
[316028971,1709328659592,-500.0,0.00022136,2]
[316028972,1709328659602,-365.36070376,0.00022136,2]
[316028973,1709328659612,-500.0,0.00022136,2]
[316028974,1709328659623,-500.0,0.00022136,2]
[316028975,1709328659633,-719.44,0.00022136,2]
[316028976,1709328659645,-6899.63,0.00022136,2]
[316028977,1709328659655,-1105.01,0.00022136,2]
[316028978,1709328659665,-500.0,0.00022136,2]
[316028979,1709328659674,-500.0,0.00022136,2]
[316028980,1709328659685,-543.88496593,0.00022136,2]
[316028981,1709328659694,-944.86,0.00022136,2]
[316028982,1709328659704,-1000.0,0.00022136,2]
[316028983,1709328659714,-21867.33676042,0.00022144,2]
[316028984,1709328659724,-11571.69775203,0.00022144,2]
[316028985,1709328659734,-11940.51045595,0.00022144,2]
[316028986,1709328659744,-3211.03759164,0.00022144,2]
[316028987,1709328659754,-2574.50738755,0.00022158,2]
[316028988,1709328659764,-785.25635458,0.00022158,2]
[316028989,1709328659774,-7800.61944253,0.00022158,2]
[316028990,1709328659784,-1303.45817382,0.00022158,2]
[316028991,1709328659794,-158.75080525,0.00022159,2]
[316028992,1709328659803,-356.66080331,0.00022159,2]
[316028993,1709328659813,-178.0,0.0002216,2]
[316028994,1709328659823,-500.0,0.0002216,2]
[316028995,1709328659833,-475.39,0.00022176,2]
[316028996,1709328659843,-282.5849898,0.00022191,2]
[316028997,1709328659854,-420.0,0.0002221,2]
[316028998,1709328659863,-385.17,0.0002222,2]
[316028999,1709328659874,-4357.48530198,0.00022225,2]
[316029000,1709328659885,-500.0,0.00022245,2]
[316029001,1709328659896,-400.98,0.00022246,2]
[316029002,1709328659907,-500.0,0.00022246,2]
[316029003,1709328659917,-500.0,0.00022246,2]
[316029004,1709328659927,-500.0,0.00022246,2]
[316029005,1709328659938,-500.0,0.00022246,2]
[316029006,1709328659949,-500.0,0.00022246,2]
[316029007,1709328659959,-500.0,0.00022246,2]
[316029008,1709328659968,-500.0,0.00022246,2]
[316029009,1709328659978,-500.0,0.00022246,2]
[316029010,1709328659988,-500.0,0.00022246,2]
[316029011,1709328659997,-500.0,0.00022246,2]
[316029012,1709328660008,-500.0,0.00022246,2]
[316029013,1709328660017,-500.0,0.00022246,2]
[316029014,1709328660028,-500.0,0.00022246,2]
[316029015,1709328660038,-500.0,0.00022246,2]
[316029016,1709328660050,-500.0,0.00022246,2]
[316029017,1709328660061,-500.0,0.00022246,2]
[316029018,1709328660071,-500.0,0.00022246,2]
[316029019,1709328660082,-500.0,0.00022246,2]
[316029020,1709328660092,-500.0,0.00022246,2]
[316029021,1709328660102,-500.0,0.00022246,2]
[316029022,1709328660112,-500.0,0.00022246,2]
[316029023,1709328660123,-449.77825106,0.00022246,2]
[316029024,1709328660136,-500.0,0.00022246,2]
[316029025,1709328660146,-500.0,0.00022246,2]
[316029026,1709328660156,-500.0,0.00022246,2]
[316029027,1709328660166,-500.0,0.00022246,2]
[316029028,1709328660175,-500.0,0.00022246,2]
[316029029,1709328660185,-500.0,0.00022246,2]
[316029030,1709328660195,-500.0,0.00022246,2]
[316029031,1709328660414,-500.0,0.00022246,2]
[316029032,1709328660426,-500.0,0.00022246,2]
[316029033,1709328660435,-500.0,0.00022246,2]
[316029034,1709328660445,-500.0,0.00022246,2]
[316029035,1709328660454,-500.0,0.00022246,2]
[316029036,1709328660463,-500.0,0.00022246,2]
[316029037,1709328660472,-500.0,0.00022246,2]
[316029038,1709328660483,-500.0,0.00022246,2]
[316029039,1709328660493,-500.0,0.00022246,2]
[316029040,1709328660503,-500.0,0.00022246,2]
[316029041,1709328660512,-500.0,0.00022246,2]
[316029042,1709328660522,-500.0,0.00022246,2]
[316029043,1709328660531,-500.0,0.00022246,2]
[316029044,1709328660540,-500.0,0.00022246,2]
[316029045,1709328660550,-500.0,0.00022246,2]
[316029046,1709328660561,-500.0,0.00022246,2]
[316029047,1709328660571,-500.0,0.00022246,2]
[316029048,1709328660580,-500.0,0.00022246,2]
[316029049,1709328660591,-500.0,0.00022246,2]
[316029050,1709328660601,-500.0,0.00022246,2]
[316029051,1709328660610,-500.0,0.00022246,2]
[316029052,1709328660621,-500.0,0.00022246,2]
[316029053,1709328660631,-500.0,0.00022246,2]
[316029054,1709328660641,-500.0,0.00022246,2]
[316029055,1709328660650,-500.0,0.00022246,2]
[316029056,1709328660659,-500.0,0.00022246,2]
[316029057,1709328660669,-500.0,0.00022246,2]
[316029058,1709328660679,-500.0,0.00022246,2]
[316029059,1709328660688,-500.0,0.00022246,2]
[316029060,1709328660698,-806.31,0.00022246,2]
[316029061,1709328660707,-868.44,0.00022246,2]
[316029062,1709328660717,-500.0,0.00022246,2]
[316029063,1709328660727,-500.0,0.00022246,2]
[316029064,1709328660736,-520.71,0.00022246,2]
[316029065,1709328660754,-500.0,0.00022246,2]
[316029066,1709328660771,-500.0,0.00022246,2]
[316029067,1709328660781,-500.0,0.00022246,2]
[316029068,1709328660790,-500.0,0.00022246,2]
[316029069,1709328660800,-500.0,0.00022246,2]
[316029070,1709328660810,-526.71,0.00022246,2]
[316029071,1709328660819,-500.0,0.00022246,2]
[316029072,1709328660828,-500.0,0.00022246,2]
[316029073,1709328660838,-500.0,0.00022246,2]
[316029074,1709328660847,-647.62,0.00022246,2]
[316029075,1709328660856,-500.0,0.00022246,2]
[316029076,1709328660866,-500.0,0.00022246,2]
[316029077,1709328660875,-500.0,0.00022246,2]
[316029078,1709328660886,-678.21,0.00022246,2]
[316029079,1709328660895,-500.0,0.00022246,2]
[316029080,1709328660917,-500.0,0.00022246,2]
[316029081,1709328660930,-544.09,0.00022246,2]
[316029082,1709328660940,-500.0,0.00022246,2]
[316029083,1709328660949,-508.46,0.00022246,2]
[316029084,1709328660959,-500.0,0.00022246,2]
[316029085,1709328660969,-500.0,0.00022246,2]
[316029086,1709328660978,-500.0,0.00022246,2]
[316029087,1709328660988,-500.0,0.00022246,2]
[316029088,1709328660997,-500.0,0.00022246,2]
[316029089,1709328661007,-500.0,0.00022246,2]
[316029090,1709328661016,-500.0,0.00022246,2]
[316029091,1709328661026,-500.0,0.00022246,2]
[316029092,1709328661037,-500.0,0.00022246,2]
[316029093,1709328661047,-500.0,0.00022246,2]
[316029094,1709328661056,-500.0,0.00022246,2]
[316029095,1709328661065,-619.74539267,0.00022246,2]
[316029096,1709328661076,-500.0,0.00022246,2]
[316029097,1709328661086,-500.0,0.00022246,2]
[316029098,1709328661095,-500.0,0.00022246,2]
[316029099,1709328661106,-500.0,0.00022246,2]
[316029100,1709328661117,-500.0,0.00022246,2]
[316029101,1709328661126,-500.0,0.00022246,2]
[316029102,1709328661137,-546.96,0.00022246,2]
[316029103,1709328661147,-500.0,0.00022246,2]
[316029104,1709328661156,-555.83,0.00022246,2]
[316029105,1709328661165,-523.64,0.00022246,2]
[316029106,1709328661175,-631.39,0.00022246,2]
[316029107,1709328661184,-500.0,0.00022246,2]
[316029108,1709328661193,-500.0,0.00022246,2]
[316029109,1709328661202,-500.0,0.00022246,2]
[316029110,1709328661211,-500.0,0.00022246,2]
[316029111,1709328661220,-500.0,0.00022246,2]
[316029112,1709328661229,-500.0,0.00022246,2]
[316029113,1709328661239,-500.0,0.00022246,2]
[316029114,1709328661248,-500.0,0.00022246,2]
[316029115,1709328661257,-500.0,0.00022246,2]
[316029116,1709328661266,-500.0,0.00022246,2]
[316029117,1709328661276,-500.0,0.00022246,2]
[316029118,1709328661286,-511.43,0.00022246,2]
[316029119,1709328661295,-500.0,0.00022246,2]
[316029120,1709328661305,-636.02,0.00022246,2]
[316029121,1709328661314,-500.0,0.00022246,2]
[316029122,1709328661324,-500.0,0.00022246,2]
[316029123,1709328661334,-500.0,0.00022246,2]
[316029124,1709328661343,-500.0,0.00022246,2]
[316029125,1709328661353,-500.0,0.00022246,2]
[316029126,1709328661362,-500.0,0.00022246,2]
[316029127,1709328661371,-500.0,0.00022246,2]
[316029128,1709328661380,-500.0,0.00022246,2]
[316029129,1709328661390,-500.0,0.00022246,2]
[316029130,1709328661399,-500.0,0.00022246,2]
[316029131,1709328661408,-438.40435287,0.00022246,2]
[316029132,1709328661419,-1020.84,0.00022246,2]
[316029133,1709328661428,-786.29,0.00022246,2]
[316029134,1709328661437,-500.0,0.00022246,2]
[316029135,1709328661451,-500.0,0.00022246,2]
[316029136,1709328661462,-500.0,0.00022246,2]
[316029137,1709328661471,-719.0,0.00022246,2]
[316029138,1709328661482,-500.0,0.00022246,2]
[316029139,1709328661491,-649.43,0.00022246,2]
[316029140,1709328661501,-500.0,0.00022246,2]
[316029141,1709328661511,-790.2,0.00022246,2]
[316029142,1709328661521,-997.5,0.00022246,2]
[316029143,1709328661532,-1068.72,0.00022246,2]
[316029144,1709328661541,-1094.89,0.00022246,2]
[316029145,1709328661551,-500.0,0.00022246,2]
[316029146,1709328661561,-500.0,0.00022246,2]
[316029147,1709328661571,-500.0,0.00022246,2]
[316029148,1709328661580,-500.0,0.00022246,2]
[316029149,1709328661590,-500.0,0.00022246,2]
[316029150,1709328661600,-1192.31,0.00022246,2]
[316029151,1709328661610,-500.0,0.00022246,2]
[316029152,1709328661620,-594.98,0.00022246,2]
[316029153,1709328661629,-500.0,0.00022246,2]
[316029154,1709328661640,-500.0,0.00022246,2]
[316029155,1709328661649,-587.36,0.00022246,2]
[316029156,1709328661659,-1550.72,0.00022246,2]
[316029157,1709328661668,-500.0,0.00022246,2]
[316029158,1709328661678,-500.0,0.00022246,2]
[316029159,1709328661688,-500.0,0.00022246,2]
[316029160,1709328661697,-500.0,0.00022246,2]
[316029161,1709328661707,-500.0,0.00022246,2]
[316029162,1709328661717,-500.0,0.00022246,2]
[316029163,1709328661728,-500.0,0.00022246,2]
[316029164,1709328661738,-500.0,0.00022246,2]
[316029165,1709328661747,-500.0,0.00022246,2]
[316029166,1709328661758,-500.0,0.00022246,2]
[316029167,1709328661767,-500.0,0.00022246,2]
[316029168,1709328661777,-961.47,0.00022246,2]
[316029169,1709328661787,-500.0,0.00022246,2]
[316029170,1709328661797,-563.88,0.00022246,2]
[316029171,1709328661808,-585.21,0.00022246,2]
[316029172,1709328661817,-500.0,0.00022246,2]
[316029173,1709328661827,-500.0,0.00022246,2]
[316029174,1709328661838,-500.0,0.00022246,2]
[316029175,1709328661848,-500.0,0.00022246,2]
[316029176,1709328661857,-468.15325351,0.00022246,2]
[316029177,1709328661867,-500.0,0.00022246,2]
[316029178,1709328661877,-565.65,0.00022246,2]
[316029179,1709328661889,-840.17,0.00022246,2]
[316029180,1709328661898,-500.0,0.00022246,2]
[316029181,1709328661909,-500.0,0.00022246,2]
[316029182,1709328661924,-500.0,0.00022246,2]
[316029183,1709328661934,-500.0,0.00022246,2]
[316029184,1709328661943,-711.45,0.00022246,2]
[316029185,1709328661954,-500.0,0.00022246,2]
[316029186,1709328661963,-500.0,0.00022246,2]
[316029187,1709328661973,-500.0,0.00022246,2]
[316029188,1709328661983,-500.0,0.00022246,2]
[316029189,1709328661993,-500.0,0.00022246,2]
[316029190,1709328662003,-500.0,0.00022246,2]
[316029191,1709328662012,-500.0,0.00022246,2]
[316029192,1709328662023,-980.11,0.00022246,2]
[316029193,1709328662033,-150.0,0.00022246,2]
[316029194,1709328662052,-500.0,0.00022246,2]
[316029195,1709328662062,-500.0,0.00022246,2]
[316029196,1709328662071,-879.26,0.00022246,2]
[316029197,1709328662081,-500.0,0.00022246,2]
[316029198,1709328662091,-500.0,0.00022246,2]
[316029199,1709328662101,-500.0,0.00022246,2]
[316029200,1709328662111,-797.44,0.00022246,2]
[316029201,1709328662122,-500.0,0.00022246,2]